{"text_format":"3","workbook":"xlsx","n_sheets":6,"sheets":["Protokol obchodních hovorů","Kontaktní údaje klienta","Před hovorem","První hovor","Prodejní informace","Ke zpracování"],"not_rendered":{"defined_names":14},"read":"whole","date_system":"1900"}

{"sheet":"Protokol obchodních hovorů","index":0,"n_rows":13,"n_cols":7,"rows_kept":13}
[null," Název společnosti"]
[null,"Protokol obchodních hovorů"]
[null,"Hovor č.","Klient","Společnost","Datum","Čas","Poznámky"]
[null,1,"Jiří Polák",{"$f":"IF(ProtokolObchodníchHovorů[[#This Row],[Klient]]=\"\",\"\",IFERROR(VLOOKUP(ProtokolObchodníchHovorů[[#This Row],[Klient]],KontaktníÚdajeKlienta[],2,0),\"Not Found\"))","v":"Proseware, a.s."},{"$f":"TODAY()-5","v":"2016-10-16"},"08:30:00"]
[null,2,"Jakub Lukeš",{"$f":"IF(ProtokolObchodníchHovorů[[#This Row],[Klient]]=\"\",\"\",IFERROR(VLOOKUP(ProtokolObchodníchHovorů[[#This Row],[Klient]],KontaktníÚdajeKlienta[],2,0),\"Not Found\"))","v":"Litware, a.s."},{"$f":"TODAY()-5","v":"2016-10-16"},"09:00:00"]
[null,3,"Lukáš Nováček",{"$f":"IF(ProtokolObchodníchHovorů[[#This Row],[Klient]]=\"\",\"\",IFERROR(VLOOKUP(ProtokolObchodníchHovorů[[#This Row],[Klient]],KontaktníÚdajeKlienta[],2,0),\"Not Found\"))","v":"Northwind Traders"},"2016-10-16","09:30:00"]
[null,4,"Karel Hovorka",{"$f":"IF(ProtokolObchodníchHovorů[[#This Row],[Klient]]=\"\",\"\",IFERROR(VLOOKUP(ProtokolObchodníchHovorů[[#This Row],[Klient]],KontaktníÚdajeKlienta[],2,0),\"Not Found\"))","v":"Lucerne Publishing"},"2016-10-16","10:00:00"]
[null,5,"Ondřej Kubát",{"$f":"IF(ProtokolObchodníchHovorů[[#This Row],[Klient]]=\"\",\"\",IFERROR(VLOOKUP(ProtokolObchodníchHovorů[[#This Row],[Klient]],KontaktníÚdajeKlienta[],2,0),\"Not Found\"))","v":"Margie's Travel"},"2016-10-16","10:30:00"]
[null,6,"Jiří Polák",{"$f":"IF(ProtokolObchodníchHovorů[[#This Row],[Klient]]=\"\",\"\",IFERROR(VLOOKUP(ProtokolObchodníchHovorů[[#This Row],[Klient]],KontaktníÚdajeKlienta[],2,0),\"Not Found\"))","v":"Proseware, a.s."},{"$f":"TODAY()-3","v":"2016-10-18"},"11:00:00"]
[null,7,"Jakub Lukeš",{"$f":"IF(ProtokolObchodníchHovorů[[#This Row],[Klient]]=\"\",\"\",IFERROR(VLOOKUP(ProtokolObchodníchHovorů[[#This Row],[Klient]],KontaktníÚdajeKlienta[],2,0),\"Not Found\"))","v":"Litware, a.s."},{"$f":"TODAY()-3","v":"2016-10-18"},"11:30:00"]
[null,8,"Jiří Polák",{"$f":"IF(ProtokolObchodníchHovorů[[#This Row],[Klient]]=\"\",\"\",IFERROR(VLOOKUP(ProtokolObchodníchHovorů[[#This Row],[Klient]],KontaktníÚdajeKlienta[],2,0),\"Not Found\"))","v":"Proseware, a.s."},{"$f":"TODAY()-1","v":"2016-10-20"},"12:00:00"]
[null,9,"Ondřej Kubát",{"$f":"IF(ProtokolObchodníchHovorů[[#This Row],[Klient]]=\"\",\"\",IFERROR(VLOOKUP(ProtokolObchodníchHovorů[[#This Row],[Klient]],KontaktníÚdajeKlienta[],2,0),\"Not Found\"))","v":"Margie's Travel"},{"$f":"TODAY()-1","v":"2016-10-20"},"12:30:00"]
[null,10,"Ondřej Kubát",{"$f":"IF(ProtokolObchodníchHovorů[[#This Row],[Klient]]=\"\",\"\",IFERROR(VLOOKUP(ProtokolObchodníchHovorů[[#This Row],[Klient]],KontaktníÚdajeKlienta[],2,0),\"Not Found\"))","v":"Margie's Travel"},{"$f":"TODAY()","v":"2016-10-21"},"13:00:00"]

{"sheet":"Kontaktní údaje klienta","index":1,"n_rows":8,"n_cols":8,"rows_kept":8}
[null,{"$f":"NázevSpolečnosti","v":" Název společnosti"}]
[null,"Kontaktní údaje klienta"]
[null,"Jméno klienta","Název společnosti","Adresa","PSČ Město","Primární telefon","Sekundární telefon","E-mail"]
[null,"Jakub Lukeš","Litware, a.s.","Hlavní 25","272 01 Kladno","(420) 585 123 444","(420) 585 123 452","Jakub@litwareinc.com"]
[null,"Karel Hovorka","Lucerne Publishing","Okružní 28","721 00 Ostrava","(420) 585 123 333","(420) 585 123 385","Karel@lucernepublishing.com"]
[null,"Ondřej Kubát","Margie's Travel","Dlouhá 98","301 00 Plzeň","(420) 452 123 480","(420) 452 123 520","Ondrej@margiestravel.com"]
[null,"Lukáš Nováček","Northwind Traders","Masarykova 35","760 01 Zlín","(420) 541 258 149","(420) 541 258 150","Lukas@northwindtraders.com"]
[null,"Jiří Polák","Proseware, a.s.","Lipová 12","747 05 Opava","(420) 625 012 324","(420) 625 012 325","Jiri@proseware.com"]

{"sheet":"Před hovorem","index":2,"n_rows":13,"n_cols":3,"rows_kept":13}
[null,{"$f":"NázevSpolečnosti","v":" Název společnosti"}]
[null,"Kontrolní seznam obchodního hovoru"]
[null,"Zaškrtávací políčko","Před hovorem"]
[null,null,"Zkontrolovat historii klienta"]
[null,null,"Zkontrolovat historii zaměstnavatele klienta"]
[null,null,"Zkontrolovat priority a obchodní strategii"]
[null,null,"Přidat položku"]
[null,null,"Přidat položku"]
[null,null,"Přidat položku"]
[null,null,"Přidat položku"]
[null,null,"Přidat položku"]
[null,null,"Přidat položku"]
[null,null,"Přidat položku"]

{"sheet":"První hovor","index":3,"n_rows":13,"n_cols":3,"rows_kept":13}
[null,{"$f":"NázevSpolečnosti","v":" Název společnosti"}]
[null,"Kontrolní seznam obchodního hovoru"]
[null,"Zaškrtávací políčko","První hovor"]
[null,null,"Přímý hovor příslušné osobě"]
[null,null,"Jasný úvod"]
[null,null,"Přidat položku"]
[null,null,"Přidat položku"]
[null,null,"Přidat položku"]
[null,null,"Přidat položku"]
[null,null,"Přidat položku"]
[null,null,"Přidat položku"]
[null,null,"Přidat položku"]
[null,null,"Přidat položku"]

{"sheet":"Prodejní informace","index":4,"n_rows":13,"n_cols":3,"rows_kept":13}
[null,{"$f":"NázevSpolečnosti","v":" Název společnosti"}]
[null,"Kontrolní seznam obchodního hovoru"]
[null,"Zaškrtávací políčko","Prodejní informace"]
[null,null,"Přehledně a poutavě představit produkt/službu"]
[null,null,"Zmínit všechny základní informace"]
[null,null,"Zmínit přítomnost na webu (například web, sociální sítě)"]
[null,null,"Přidat položku"]
[null,null,"Přidat položku"]
[null,null,"Přidat položku"]
[null,null,"Přidat položku"]
[null,null,"Přidat položku"]
[null,null,"Přidat položku"]
[null,null,"Přidat položku"]

{"sheet":"Ke zpracování","index":5,"n_rows":13,"n_cols":3,"rows_kept":13}
[null,{"$f":"NázevSpolečnosti","v":" Název společnosti"}]
[null,"Kontrolní seznam obchodního hovoru"]
[null,"Zaškrtávací políčko","Informace ke zpracování"]
[null,null,"Kontaktní údaje klienta"]
[null,null,"Osobní údaje klienta"]
[null,null,"Preference klienta"]
[null,null,"Přeplánovaný kontakt?"]
[null,null,"Uskutečnil se prodej?"]
[null,null,"Přidat položku"]
[null,null,"Přidat položku"]
[null,null,"Přidat položku"]
[null,null,"Přidat položku"]
[null,null,"Přidat položku"]